[Event "Kupreichik Memorial Open 2018"]
[Site "Minsk"]
[Date "2018.06.21"]
[Round "4"]
[White "Kalinin, Dmitry"]
[Black "Nomin-Erdene, Davaademberel"]
[Result "1/2-1/2"]
[ECO "A80"]
[WhiteElo "1995"]
[BlackElo "2312"]
[Annotator "NA"]
[PlyCount "181"]
[EventDate "2018.06.21"]
[EventCountry "BLR"]
[SourceTitle "playchess.com"]
[Source "ChessBase"]
[SourceQuality "1"]
[TimeControl "900+10"]

1. d4 {[%emt 0:00:00]} f5 {[%emt 0:00:03]} 2. Nf3 {[%emt 0:00:08]} Nf6 {[%emt 0:00:02]} 3. g3 {[%emt 0:00:08]} g6 {[%emt 0:00:02]} 4. Bg2 {[%emt 0:00:02]} Bg7 {[%emt 0:00:01]} 5. O-O {[%emt 0:00:03]} O-O {[%emt 0:00:13]} 6. c4 {[%emt 0:00:07]} d6 {[%emt 0:00:01]} 7. Nc3 {[%emt 0:00:08]} Qe8 {[%emt 0:00:30]} 8. d5 {[%emt 0:00:33]} Na6 {[%emt 0:03:49]} 9. Be3 {[%emt 0:01:24]} c6 {[%emt 0:00:44]} 10. Nd4 {[%emt 0:01:31]} Bd7 {[%emt 0:00:17]} 11. Rc1 {[%emt 0:00:51]} Nc7 {[%emt 0:00:37]} 12. Qb3 {[%emt 0:00:26]} Rb8 {[%emt 0:01:53]} 13. Rfd1 {[%emt 0:02:35]} Kh8 {[%emt 0:00:56]} 14. Qa3 {[%emt 0:00:57]} a6 {[%emt 0:00:47]} 15. c5 {[%emt 0:01:14]} Ncxd5 {[%emt 0:02:42]} 16. Nxd5 {[%emt 0:00:08]} cxd5 {[%emt 0:01:34]} 17. cxd6 {[%emt 0:01:18]} e5 {[%emt 0:00:01]} 18. Nb3 {[%emt 0:00:11]} d4 {[%emt 0:01:33]} 19. Bg5 {[%emt 0:00:09]} b6 {[%emt 0:00:33]} 20. Rc7 {[%emt 0:00:21]} Qe6 {[%emt 0:00:11]} 21. f4 {[%emt 0:00:34]} Ne8 {[%emt 0:00:12]} 22. Be7 {[%emt 0:00:53]} Nxc7 {[%emt 0:00:20]} 23. Bxf8 {[%emt 0:00:06]} Bxf8 {[%emt 0:00:14]} 24. dxc7 {[%emt 0:00:01]} Rc8 {[%emt 0:00:02]} 25. Qxa6 {[%emt 0:00:18]} exf4 {[%emt 0:00:15]} 26. Nxd4 {[%emt 0:00:23]} Bc5 {[%emt 0:00:41]} 27. Kh1 {[%emt 0:00:17]} Bxd4 {[%emt 0:00:19]} 28. Rxd4 {[%emt 0:00:16]} Rxc7 {[%emt 0:00:03]} 29. Rd1 {[%emt 0:01:20]} fxg3 {[%emt 0:00:02]} 30. hxg3 {[%emt 0:00:05]} Kg7 {[%emt 0:00:21]} 31. Qd3 {[%emt 0:00:20]} Bc6 {[%emt 0:00:49]} 32. Qd4+ {[%emt 0:00:25]} Kf7 {[%emt 0:00:14]} 33. Bxc6 {[%emt 0:00:12]} Qxc6+ {[%emt 0:00:02]} 34. Kh2 {[%emt 0:00:01]} Re7 {[%emt 0:00:09]} 35. Rd2 {[%emt 0:00:07]} Qf6 {[%emt 0:00:09]} 36. Qd8 {[%emt 0:00:08]} Rxe2+ {[%emt 0:00:05]} 37. Kh3 {[%emt 0:00:10]} Qxd8 {[%emt 0:00:02]} 38. Rxd8 {[%emt 0:00:01]} Rxb2 {[%emt 0:00:01]} 39. Rd7+ {[%emt 0:00:01]} Kf6 {[%emt 0:00:01]} 40. Rb7 {[%emt 0:00:08]} Rxa2 {[%emt 0:00:16]} 41. Rxb6+ {[%emt 0:00:01]} Kg5 {[%emt 0:00:01]} 42. Rc6 {[%emt 0:00:13]} Ra3 {[%emt 0:00:02]} 43. Kg2 {[%emt 0:00:14]} Kg4 {[%emt 0:00:06]} 44. Rc4+ {[%emt 0:00:02]} Kh5 {[%emt 0:00:02]} 45. Rh4+ {[%emt 0:00:02]} Kg5 {[%emt 0:00:03]} 46. Rxh7 {[%emt 0:00:02]} Ra4 {[%emt 0:01:11]} 47. Rb7 {[%emt 0:00:13]} Kg4 {[%emt 0:00:03]} 48. Rb2 {[%emt 0:00:05]} Rd4 {[%emt 0:00:38]} 49. Ra2 {[%emt 0:00:11]} Rd3 {[%emt 0:00:14]} 50. Ra4+ {[%emt 0:00:01]} Kg5 {[%emt 0:00:01]} 51. Rb4 {[%emt 0:00:02]} Re3 {[%emt 0:00:02]} 52. Ra4 {[%emt 0:00:02]} Kf6 {[%emt 0:00:01]} 53. Kf2 {[%emt 0:00:05]} Re6 {[%emt 0:00:04]} 54. Kf3 {[%emt 0:00:04]} Rd6 {[%emt 0:00:04]} 55. Ra8 {[%emt 0:00:10]} Rd3+ {[%emt 0:00:22]} 56. Kg2 {[%emt 0:00:05]} Ke5 {[%emt 0:00:19]} 57. Rg8 {[%emt 0:00:02]} Rd6 {[%emt 0:00:02]} 58. Re8+ {[%emt 0:00:04]} Re6 {[%emt 0:00:02]} 59. Ra8 {[%emt 0:00:06]} Rd6 {[%emt 0:00:35]} 60. Ra4 {[%emt 0:00:04]} Rd4 {[%emt 0:00:07]} 61. Ra2 {[%emt 0:00:10]} Rd6 {[%emt 0:00:16]} 62. Re2+ {[%emt 0:00:11]} Kf6 {[%emt 0:00:12]} 63. Ra2 {[%emt 0:00:05]} Rd4 {[%emt 0:00:01]} 64. Kf3 {[%emt 0:00:06]} Kg5 {[%emt 0:00:14]} 65. Ra6 {[%emt 0:00:01]} Rd3+ {[%emt 0:00:12]} 66. Kg2 {[%emt 0:00:04]} Kh5 {[%emt 0:00:03]} 67. Ra4 {[%emt 0:00:03]} Re3 {[%emt 0:00:05]} 68. Kf2 {[%emt 0:00:05]} Re4 {[%emt 0:00:04]} 69. Ra2 {[%emt 0:00:11]} Kg4 {[%emt 0:00:03]} 70. Rb2 {[%emt 0:00:09]} Kh3 {[%emt 0:00:39]} 71. Rb8 {[%emt 0:00:09]} Kg4 {[%emt 0:00:08]} 72. Rb2 {[%emt 0:00:02]} Rd4 {[%emt 0:00:11]} 73. Ra2 {[%emt 0:00:05]} g5 {[%emt 0:00:02]} 74. Kg2 {[%emt 0:00:07]} Rd3 {[%emt 0:00:10]} 75. Ra4+ {[%emt 0:00:01]} f4 {[%emt 0:00:01]} 76. gxf4 {[%emt 0:00:04]} Rd2+ {[%emt 0:00:03]} 77. Kg1 {[%emt 0:00:15]} gxf4 {[%emt 0:00:09]} 78. Ra3 {[%emt 0:00:16]} Re2 {[%emt 0:00:22]} 79. Kf1 {[%emt 0:00:07]} Re5 {[%emt 0:00:11]} 80. Rb3 {[%emt 0:00:07]} f3 {[%emt 0:00:23]} 81. Rb8 {[%emt 0:00:03]} Kf4 {[%emt 0:00:02]} 82. Rf8+ {[%emt 0:00:36]} Ke3 {[%emt 0:00:03]} 83. Rb8 {[%emt 0:00:03]} Re4 84. Ra8 {[%emt 0:00:19]} Rb4 {[%emt 0:00:34]} 85. Re8+ {[%emt 0:00:05]} Kf4 {[%emt 0:00:02]} 86. Rf8+ {[%emt 0:00:01]} Kg3 {[%emt 0:00:01]} 87. Rg8+ {[%emt 0:00:01]} Rg4 {[%emt 0:00:15]} 88. Rxg4+ {[%emt 0:00:02]} Kxg4 {[%emt 0:00:01]} 89. Kf2 {[%emt 0:00:00]} Kf4 {[%emt 0:00:01]} 90. Kf1 {[%emt 0:00:01]} Kg3 {[%emt 0:00:02]} 91. Kg1 {[%emt 0:00:01]} 1/2-1/2

[Event "Kupreichik Memorial Open 2018"]
[Site "Minsk"]
[Date "2018.06.21"]
[Round "4"]
[White "Tsaruk, Maksim"]
[Black "Ten, Alexander"]
[Result "1-0"]
[ECO "C66"]
[WhiteElo "1980"]
[BlackElo "2265"]
[Annotator "NA"]
[PlyCount "85"]
[EventDate "2018.06.21"]
[EventCountry "BLR"]
[SourceTitle "playchess.com"]
[Source "ChessBase"]
[SourceQuality "1"]
[TimeControl "900+10"]

1. e4 {[%emt 0:00:00]} e5 {[%emt 0:00:01]} 2. Nf3 {[%emt 0:00:00]} Nc6 {[%emt 0:00:02]} 3. Bb5 {[%emt 0:00:05]} Nf6 {[%emt 0:00:15]} 4. O-O {[%emt 0:00:07]} d6 {[%emt 0:01:37]} 5. d4 {[%emt 0:00:23]} exd4 {[%emt 0:00:10]} 6. Nxd4 {[%emt 0:00:05]} Bd7 {[%emt 0:00:01]} 7. Re1 {[%emt 0:01:25]} Be7 {[%emt 0:00:14]} 8. Bf1 {[%emt 0:01:50]} O-O {[%emt 0:00:13]} 9. c4 {[%emt 0:00:05]} Nxd4 {[%emt 0:02:19]} 10. Qxd4 {[%emt 0:00:02]} Be6 {[%emt 0:00:39]} 11. Nc3 {[%emt 0:00:11]} Nd7 {[%emt 0:02:23]} 12. b3 {[%emt 0:00:11]} Bf6 {[%emt 0:00:24]} 13. Qd2 {[%emt 0:00:06]} Nc5 {[%emt 0:01:02]} 14. Bb2 {[%emt 0:00:53]} a5 {[%emt 0:00:03]} 15. Rad1 {[%emt 0:00:44]} Qd7 {[%emt 0:01:22]} 16. h3 {[%emt 0:06:43]} Rfe8 {[%emt 0:00:23]} 17. f4 {[%emt 0:01:38]} Qc6 {[%emt 0:00:22]} 18. Nb5 {[%emt 0:02:19]} Bxb2 {[%emt 0:02:34]} 19. Qxb2 {[%emt 0:00:01]} Qb6 {[%emt 0:00:22]} 20. Qf2 {[%emt 0:00:22]} Bd7 {[%emt 0:00:15]} 21. Nc3 {[%emt 0:00:24]} Bc6 {[%emt 0:00:11]} 22. e5 {[%emt 0:00:21]} dxe5 {[%emt 0:00:23]} 23. fxe5 {[%emt 0:00:06]} a4 {[%emt 0:00:46]} 24. Nd5 {[%emt 0:00:38]} Bxd5 {[%emt 0:00:01]} 25. cxd5 {[%emt 0:00:01]} axb3 26. axb3 Nxb3 {[%emt 0:01:17]} 27. Qxb6 {[%emt 0:00:02]} cxb6 {[%emt 0:00:01]} 28. Rb1 {[%emt 0:00:29]} Ra3 {[%emt 0:00:43]} 29. d6 {[%emt 0:00:23]} Rd8 {[%emt 0:00:15]} 30. Re3 {[%emt 0:00:13]} Nd2 {[%emt 0:00:05]} 31. Rxa3 {[%emt 0:00:01]} Nxb1 {[%emt 0:00:01]} 32. Rb3 {[%emt 0:00:01]} Nd2 {[%emt 0:00:03]} 33. Rxb6 {[%emt 0:00:00]} Ne4 {[%emt 0:00:31]} 34. Rxb7 {[%emt 0:00:16]} Nc5 {[%emt 0:00:18]} 35. Rc7 {[%emt 0:00:16]} Nd7 {[%emt 0:00:07]} 36. Bb5 {[%emt 0:00:25]} Nxe5 {[%emt 0:00:02]} 37. d7 {[%emt 0:00:00]} Kf8 {[%emt 0:00:04]} 38. Kf2 {[%emt 0:00:08]} Ke7 {[%emt 0:00:01]} 39. Ke3 {[%emt 0:00:05]} Nxd7 {[%emt 0:00:06]} 40. Ke4 {[%emt 0:00:21]} Kd6 {[%emt 0:00:40]} 41. Rc6+ {[%emt 0:00:01]} Ke7 {[%emt 0:00:10]} 42. Rc7 {[%emt 0:00:01]} Kd6 {[%emt 0:00:25]} 43. Rc6+ {[%emt 0:00:02]} 1-0

[Event "Kupreichik Memorial Open 2018"]
[Site "Minsk"]
[Date "2018.06.21"]
[Round "4"]
[White "Naumovich, Yaroslav"]
[Black "Rakhmangulova, Anastasiya"]
[Result "1-0"]
[ECO "A37"]
[WhiteElo "1959"]
[BlackElo "2244"]
[Annotator "NA"]
[PlyCount "73"]
[EventDate "2018.06.21"]
[EventCountry "BLR"]
[SourceTitle "playchess.com"]
[Source "ChessBase"]
[SourceQuality "1"]
[TimeControl "900+10"]

1. Nf3 {[%emt 0:00:00]} c5 {[%emt 0:00:01]} 2. c4 {[%emt 0:00:00]} Nc6 {[%emt 0:00:01]} 3. Nc3 {[%emt 0:00:00]} g6 {[%emt 0:00:01]} 4. g3 {[%emt 0:00:00]} Bg7 {[%emt 0:00:01]} 5. Bg2 {[%emt 0:00:00]} Nh6 {[%emt 0:00:01]} 6. O-O {[%emt 0:00:00]} Nf5 {[%emt 0:00:01]} 7. d3 {[%emt 0:00:02]} d6 {[%emt 0:00:03]} 8. Bd2 {[%emt 0:00:01]} Bd7 {[%emt 0:00:20]} 9. Rb1 {[%emt 0:00:01]} a6 {[%emt 0:00:44]} 10. a3 {[%emt 0:00:02]} Nfd4 {[%emt 0:00:37]} 11. b4 {[%emt 0:00:40]} Rb8 {[%emt 0:01:13]} 12. b5 {[%emt 0:00:53]} axb5 {[%emt 0:00:06]} 13. Nxb5 {[%emt 0:00:31]} Nxb5 {[%emt 0:00:17]} 14. cxb5 {[%emt 0:00:06]} Ne5 {[%emt 0:00:36]} 15. Nxe5 {[%emt 0:00:10]} Bxe5 {[%emt 0:00:01]} 16. a4 {[%emt 0:00:44]} h5 {[%emt 0:00:11]} 17. h4 {[%emt 0:00:03]} Qc8 {[%emt 0:00:21]} 18. Qb3 {[%emt 0:00:52]} Be6 {[%emt 0:00:47]} 19. Qc2 {[%emt 0:00:07]} Bh3 {[%emt 0:02:11]} 20. Bc3 {[%emt 0:00:11]} Bxc3 {[%emt 0:00:28]} 21. Qxc3 {[%emt 0:00:01]} f6 {[%emt 0:00:06]} 22. a5 {[%emt 0:00:15]} Rg8 {[%emt 0:01:53]} 23. Qc4 {[%emt 0:00:49]} Rg7 {[%emt 0:01:44]} 24. d4 {[%emt 0:00:24]} Bxg2 {[%emt 0:01:15]} 25. Kxg2 {[%emt 0:00:02]} Qg4 {[%emt 0:00:24]} 26. Rfc1 {[%emt 0:01:31]} Qe4+ {[%emt 0:02:03]} 27. f3 {[%emt 0:00:12]} Qxd4 {[%emt 0:00:25]} 28. Qxd4 {[%emt 0:00:01]} cxd4 {[%emt 0:00:01]} 29. a6 {[%emt 0:00:01]} bxa6 {[%emt 0:03:43]} 30. bxa6 {[%emt 0:00:01]} Ra8 {[%emt 0:00:00]} 31. Rb6 {[%emt 0:00:02]} Kd7 {[%emt 0:00:30]} 32. Rb7+ {[%emt 0:00:16]} Ke6 {[%emt 0:00:04]} 33. a7 {[%emt 0:00:01]} Rgg8 {[%emt 0:00:12]} 34. Rc4 {[%emt 0:01:32]} Kd5 {[%emt 0:00:06]} 35. Rcb4 {[%emt 0:00:00]} Ke6 {[%emt 0:00:19]} 36. Rb8 {[%emt 0:00:43]} Kf7 {[%emt 0:00:11]} 37. Rxg8 {[%emt 0:00:03]} 1-0

[Event "Kupreichik Memorial Open 2018"]
[Site "Minsk"]
[Date "2018.06.21"]
[Round "4"]
[White "Uzlavataya, Anhelina"]
[Black "Cherepov, Alexej"]
[Result "1-0"]
[ECO "A04"]
[WhiteElo "1925"]
[BlackElo "2234"]
[Annotator "NA"]
[PlyCount "57"]
[EventDate "2018.06.21"]
[EventCountry "BLR"]
[SourceTitle "playchess.com"]
[Source "ChessBase"]
[SourceQuality "1"]
[TimeControl "900+10"]

1. Nf3 {[%emt 0:00:00]} c5 {[%emt 0:00:05]} 2. g3 {[%emt 0:00:00]} Nc6 {[%emt 0:00:13]} 3. d4 {[%emt 0:00:00]} cxd4 {[%emt 0:00:37]} 4. Nxd4 {[%emt 0:00:00]} d5 {[%emt 0:00:02]} 5. Nxc6 {[%emt 0:00:07]} bxc6 {[%emt 0:00:01]} 6. c4 {[%emt 0:00:04]} d4 {[%emt 0:01:14]} 7. Bg2 {[%emt 0:00:11]} Bb7 {[%emt 0:00:23]} 8. O-O {[%emt 0:01:07]} e5 {[%emt 0:00:53]} 9. Qa4 {[%emt 0:00:20]} Qd7 {[%emt 0:02:14]} 10. Rd1 {[%emt 0:00:42]} Ne7 {[%emt 0:03:24]} 11. f4 {[%emt 0:01:04]} Nc8 {[%emt 0:01:24]} 12. fxe5 {[%emt 0:00:51]} Nb6 {[%emt 0:00:01]} 13. Qc2 {[%emt 0:00:20]} c5 {[%emt 0:00:16]} 14. e3 {[%emt 0:01:00]} Bxg2 {[%emt 0:00:51]} 15. Qxg2 {[%emt 0:00:02]} Rc8 {[%emt 0:00:37]} 16. b3 {[%emt 0:00:40]} d3 {[%emt 0:00:23]} 17. Bb2 {[%emt 0:00:22]} Be7 {[%emt 0:00:07]} 18. e6 {[%emt 0:02:21]} Qxe6 {[%emt 0:00:04]} 19. Bxg7 {[%emt 0:00:06]} Rg8 {[%emt 0:00:10]} 20. Bb2 {[%emt 0:00:25]} Qxe3+ {[%emt 0:00:17]} 21. Kh1 {[%emt 0:00:01]} Rd8 {[%emt 0:00:20]} 22. Nc3 {[%emt 0:02:25]} Rg6 {[%emt 0:00:28]} 23. Re1 {[%emt 0:00:21]} Qg5 {[%emt 0:00:08]} 24. Ne4 {[%emt 0:00:19]} Qf5 {[%emt 0:00:22]} 25. Rf1 {[%emt 0:00:27]} Qh5 {[%emt 0:01:59]} 26. Rae1 {[%emt 0:00:36]} Kf8 {[%emt 0:01:03]} 27. Qf2 {[%emt 0:01:13]} Re6 {[%emt 0:00:42]} 28. Nf6 {[%emt 0:02:16]} Qh3 {[%emt 0:01:09]} 29. Ng4 1-0

[Event "Kupreichik Memorial Open 2018"]
[Site "Minsk"]
[Date "2018.06.21"]
[Round "4"]
[White "Sadovnikov, Konstantin"]
[Black "Korniichuk, Oleksandra"]
[Result "1-0"]
[ECO "B23"]
[WhiteElo "1908"]
[BlackElo "1740"]
[Annotator "NA"]
[PlyCount "59"]
[EventDate "2018.06.21"]
[EventCountry "BLR"]
[SourceTitle "playchess.com"]
[Source "ChessBase"]
[SourceQuality "1"]
[TimeControl "900+10"]

1. e4 {[%emt 0:00:00]} c5 {[%emt 0:00:04]} 2. Nc3 {[%emt 0:00:00]} e6 {[%emt 0:00:09]} 3. g3 {[%emt 0:00:00]} d5 {[%emt 0:00:07]} 4. Bg2 {[%emt 0:00:02]} d4 {[%emt 0:00:22]} 5. Nce2 {[%emt 0:00:05]} Nf6 {[%emt 0:00:24]} 6. d3 {[%emt 0:00:07]} Be7 {[%emt 0:00:22]} 7. f4 {[%emt 0:00:08]} Nc6 {[%emt 0:00:18]} 8. Nf3 {[%emt 0:00:04]} O-O {[%emt 0:00:13]} 9. O-O {[%emt 0:00:12]} b5 {[%emt 0:00:20]} 10. h3 {[%emt 0:00:35]} Bb7 {[%emt 0:00:40]} 11. g4 {[%emt 0:00:08]} Qb6 {[%emt 0:00:25]} 12. f5 {[%emt 0:00:31]} exf5 {[%emt 0:00:25]} 13. gxf5 {[%emt 0:00:09]} Nd7 {[%emt 0:00:41]} 14. Bf4 {[%emt 0:00:52]} Bf6 {[%emt 0:00:21]} 15. Ng3 {[%emt 0:00:14]} Nce5 {[%emt 0:00:50]} 16. Nh5 {[%emt 0:00:30]} Rfe8 {[%emt 0:01:36]} 17. Nxe5 {[%emt 0:00:57]} Nxe5 {[%emt 0:00:51]} 18. Bxe5 {[%emt 0:00:02]} Bxe5 {[%emt 0:00:02]} 19. Qg4 {[%emt 0:01:26]} Qc7 {[%emt 0:00:42]} 20. Nxg7 {[%emt 0:00:52]} Bh2+ {[%emt 0:02:47]} 21. Kh1 {[%emt 0:00:03]} Qg3 {[%emt 0:00:11]} 22. Nxe8+ {[%emt 0:00:54]} Qxg4 {[%emt 0:00:06]} 23. hxg4 {[%emt 0:00:01]} Be5 {[%emt 0:00:06]} 24. Nc7 {[%emt 0:00:58]} Bxc7 {[%emt 0:00:05]} 25. Rae1 {[%emt 0:00:01]} Be5 {[%emt 0:00:05]} 26. Bh3 {[%emt 0:00:03]} f6 {[%emt 0:00:17]} 27. g5 {[%emt 0:00:46]} fxg5 {[%emt 0:00:29]} 28. f6 {[%emt 0:00:01]} Bf4 {[%emt 0:00:11]} 29. Be6+ {[%emt 0:01:24]} Kf8 {[%emt 0:00:07]} 30. Rxf4 {[%emt 0:00:01]} 1-0

[Event "Kupreichik Memorial Open 2018"]
[Site "Minsk"]
[Date "2018.06.21"]
[Round "4"]
[White "Kirilin, Dmitrij"]
[Black "Osmolny, Vladimir I"]
[Result "1-0"]
[ECO "D07"]
[WhiteElo "1898"]
[BlackElo "2163"]
[Annotator "NA"]
[PlyCount "43"]
[EventDate "2018.06.21"]
[EventCountry "BLR"]
[SourceTitle "playchess.com"]
[Source "ChessBase"]
[SourceQuality "1"]
[TimeControl "900+10"]

1. d4 {[%emt 0:00:00]} d5 {[%emt 0:00:59]} 2. c4 {[%emt 0:00:00]} Nc6 {[%emt 0:00:02]} 3. Nf3 {[%emt 0:00:14]} Bg4 {[%emt 0:00:07]} 4. e3 {[%emt 0:00:20]} e5 {[%emt 0:01:03]} 5. dxe5 {[%emt 0:01:20]} dxc4 {[%emt 0:00:12]} 6. Qa4 {[%emt 0:01:01]} Qd5 {[%emt 0:07:19]} 7. Bxc4 {[%emt 0:00:46]} Qd7 {[%emt 0:00:59]} 8. Nbd2 {[%emt 0:00:58]} Nxe5 {[%emt 0:00:41]} 9. Bb5 {[%emt 0:00:45]} Nd3+ {[%emt 0:00:12]} 10. Ke2 {[%emt 0:00:12]} Bxf3+ {[%emt 0:00:04]} 11. Nxf3 {[%emt 0:00:31]} Nxc1+ 12. Raxc1 {[%emt 0:00:01]} c6 {[%emt 0:01:59]} 13. Rxc6 {[%emt 0:00:12]} bxc6 {[%emt 0:02:52]} 14. Bxc6 {[%emt 0:00:02]} O-O-O {[%emt 0:00:19]} 15. Bxd7+ {[%emt 0:00:29]} Rxd7 {[%emt 0:00:01]} 16. Rc1+ {[%emt 0:00:03]} Kd8 {[%emt 0:00:27]} 17. Ne5 {[%emt 0:00:21]} Rb7 {[%emt 0:00:25]} 18. Rd1+ {[%emt 0:01:05]} Ke7 {[%emt 0:00:16]} 19. Rd7+ {[%emt 0:00:23]} Rxd7 {[%emt 0:00:01]} 20. Qxd7+ {[%emt 0:00:02]} Kf6 {[%emt 0:00:01]} 21. Qxf7+ {[%emt 0:00:50]} Kxe5 {[%emt 0:00:03]} 22. f4+ {[%emt 0:00:01]} 1-0

[Event "Kupreichik Memorial Open 2018"]
[Site "Minsk"]
[Date "2018.06.21"]
[Round "4"]
[White "Tyurin, Artem"]
[Black "Tarasenka, Aliaksandra"]
[Result "1-0"]
[ECO "B10"]
[WhiteElo "1855"]
[BlackElo "1682"]
[Annotator "NA"]
[PlyCount "97"]
[EventDate "2018.06.21"]
[EventCountry "BLR"]
[SourceTitle "playchess.com"]
[Source "ChessBase"]
[SourceQuality "1"]
[TimeControl "900+10"]

1. e4 {[%emt 0:00:00]} c6 {[%emt 0:00:03]} 2. Nc3 {[%emt 0:00:00]} d5 {[%emt 0:00:12]} 3. Qe2 {[%emt 0:00:00]} Nf6 {[%emt 0:02:30]} 4. d3 {[%emt 0:00:20]} g6 {[%emt 0:00:51]} 5. Bg5 {[%emt 0:00:17]} Bg7 {[%emt 0:00:59]} 6. e5 {[%emt 0:00:09]} Nfd7 {[%emt 0:00:44]} 7. d4 {[%emt 0:00:06]} Qc7 {[%emt 0:01:21]} 8. O-O-O {[%emt 0:00:09]} e6 {[%emt 0:00:28]} 9. h4 {[%emt 0:00:22]} a6 {[%emt 0:00:49]} 10. h5 {[%emt 0:01:21]} c5 {[%emt 0:00:21]} 11. hxg6 hxg6 {[%emt 0:00:18]} 12. Rxh8+ {[%emt 0:00:57]} Bxh8 {[%emt 0:00:01]} 13. f4 {[%emt 0:00:51]} b5 {[%emt 0:03:03]} 14. f5 {[%emt 0:02:02]} gxf5 {[%emt 0:01:57]} 15. Qh5 {[%emt 0:01:03]} Bg7 {[%emt 0:00:06]} 16. Bxb5 {[%emt 0:01:03]} cxd4 {[%emt 0:00:34]} 17. Nxd5 {[%emt 0:01:43]} Qxe5 {[%emt 0:00:15]} 18. Bxd7+ {[%emt 0:02:23]} Nxd7 {[%emt 0:01:06]} 19. Nf4 {[%emt 0:00:02]} Bb7 {[%emt 0:00:36]} 20. Nd3 {[%emt 0:00:33]} Qa5 {[%emt 0:00:33]} 21. Kb1 {[%emt 0:00:48]} Bd5 {[%emt 0:00:18]} 22. b3 {[%emt 0:00:03]} Rc8 {[%emt 0:00:24]} 23. Ne2 {[%emt 0:00:10]} Qc7 {[%emt 0:01:00]} 24. Rd2 {[%emt 0:00:25]} Nf6 {[%emt 0:00:19]} 25. Bxf6 {[%emt 0:00:19]} Bxf6 {[%emt 0:00:01]} 26. Nef4 {[%emt 0:00:09]} Qd6 {[%emt 0:00:18]} 27. Qh6 {[%emt 0:00:43]} Ke7 {[%emt 0:00:13]} 28. Qh7 {[%emt 0:00:05]} e5 {[%emt 0:00:15]} 29. Nxd5+ {[%emt 0:01:04]} Qxd5 {[%emt 0:00:01]} 30. Qxf5 {[%emt 0:00:02]} Rg8 {[%emt 0:00:21]} 31. Rf2 {[%emt 0:00:39]} Rg6 {[%emt 0:00:07]} 32. Nf4 {[%emt 0:00:02]} Qd6 {[%emt 0:00:14]} 33. Nxg6+ {[%emt 0:00:05]} fxg6 {[%emt 0:00:03]} 34. Qxg6 {[%emt 0:00:03]} a5 {[%emt 0:00:14]} 35. Qh7+ {[%emt 0:00:03]} Kd8 {[%emt 0:00:08]} 36. Qg8+ {[%emt 0:00:02]} Kc7 {[%emt 0:00:10]} 37. Qf7+ {[%emt 0:00:05]} Be7 {[%emt 0:00:01]} 38. Qc4+ {[%emt 0:00:08]} Kd8 {[%emt 0:00:19]} 39. Rf7 {[%emt 0:00:16]} e4 {[%emt 0:00:13]} 40. Rf5 {[%emt 0:00:02]} Qh6 {[%emt 0:00:13]} 41. Qxd4+ {[%emt 0:00:05]} Ke8 {[%emt 0:00:03]} 42. Qxe4 {[%emt 0:00:17]} Qh1+ {[%emt 0:00:04]} 43. Kb2 {[%emt 0:00:03]} Qh8+ {[%emt 0:00:04]} 44. Qe5 {[%emt 0:00:01]} Qh4 {[%emt 0:00:13]} 45. Qb8+ {[%emt 0:00:06]} Kd7 {[%emt 0:00:02]} 46. Rd5+ {[%emt 0:00:18]} Ke6 {[%emt 0:00:01]} 47. Qe5+ {[%emt 0:00:02]} Kf7 {[%emt 0:00:02]} 48. Rd7 {[%emt 0:00:07]} a4 {[%emt 0:00:10]} 49. Qxe7+ {[%emt 0:00:05]} 1-0

[Event "Kupreichik Memorial Open 2018"]
[Site "Minsk"]
[Date "2018.06.21"]
[Round "4"]
[White "Kruglikova, Viktorija"]
[Black "Ivanytska, Liudmyla"]
[Result "1/2-1/2"]
[ECO "B01"]
[WhiteElo "1839"]
[BlackElo "1655"]
[Annotator "NA"]
[PlyCount "98"]
[EventDate "2018.06.21"]
[EventCountry "BLR"]
[SourceTitle "playchess.com"]
[Source "ChessBase"]
[SourceQuality "1"]
[TimeControl "900+10"]

1. e4 {[%emt 0:00:00]} d5 {[%emt 0:00:00]} 2. exd5 {[%emt 0:00:00]} Qxd5 {[%emt 0:00:02]} 3. Nc3 {[%emt 0:00:00]} Qa5 {[%emt 0:00:01]} 4. Nf3 {[%emt 0:00:00]} c6 {[%emt 0:00:01]} 5. d4 {[%emt 0:00:05]} Nf6 {[%emt 0:00:02]} 6. Be2 {[%emt 0:00:02]} Bf5 {[%emt 0:00:02]} 7. O-O {[%emt 0:00:03]} e6 {[%emt 0:00:00]} 8. h3 {[%emt 0:00:07]} Bd6 {[%emt 0:00:02]} 9. Nh4 {[%emt 0:00:04]} Bg6 {[%emt 0:00:02]} 10. Nxg6 {[%emt 0:00:02]} hxg6 {[%emt 0:00:01]} 11. Bf3 {[%emt 0:00:03]} Nbd7 {[%emt 0:00:15]} 12. Re1 {[%emt 0:00:02]} Qc7 {[%emt 0:00:05]} 13. d5 {[%emt 0:00:35]} cxd5 {[%emt 0:00:01]} 14. Nxd5 {[%emt 0:00:19]} Nxd5 {[%emt 0:00:02]} 15. Bxd5 {[%emt 0:00:02]} Nf6 {[%emt 0:00:01]} 16. Bf3 {[%emt 0:00:07]} O-O {[%emt 0:00:15]} 17. c3 {[%emt 0:00:01]} Rad8 {[%emt 0:00:01]} 18. Qb3 {[%emt 0:00:02]} b6 {[%emt 0:00:02]} 19. Be3 {[%emt 0:00:05]} Bc5 {[%emt 0:00:05]} 20. Qc4 {[%emt 0:00:25]} Bd6 {[%emt 0:00:01]} 21. Qb3 {[%emt 0:00:42]} Bf4 {[%emt 0:00:15]} 22. Bxf4 {[%emt 0:01:16]} Qxf4 {[%emt 0:00:01]} 23. Qb5 {[%emt 0:00:01]} Rd2 {[%emt 0:00:11]} 24. b3 {[%emt 0:02:51]} Rfd8 {[%emt 0:00:15]} 25. a4 {[%emt 0:05:51]} Rc2 {[%emt 0:00:07]} 26. Qc6 {[%emt 0:00:24]} Rdd2 {[%emt 0:00:25]} 27. Rf1 {[%emt 0:00:01]} Rd3 {[%emt 0:00:20]} 28. Qa8+ {[%emt 0:00:08]} Kh7 {[%emt 0:00:01]} 29. Qxa7 {[%emt 0:00:01]} Rcxc3 {[%emt 0:00:02]} 30. Qxf7 {[%emt 0:00:24]} Qg5 {[%emt 0:00:20]} 31. Kh1 {[%emt 0:00:38]} Qf5 {[%emt 0:00:39]} 32. Bg4 {[%emt 0:01:35]} Nxg4 {[%emt 0:00:02]} 33. Qxf5 {[%emt 0:00:02]} gxf5 {[%emt 0:00:02]} 34. hxg4 {[%emt 0:00:02]} Rxb3 {[%emt 0:00:11]} 35. gxf5 {[%emt 0:00:01]} exf5 {[%emt 0:00:01]} 36. a5 {[%emt 0:00:08]} bxa5 {[%emt 0:00:19]} 37. Rxa5 {[%emt 0:00:02]} g6 {[%emt 0:00:03]} 38. Re1 {[%emt 0:00:02]} Rd2 {[%emt 0:00:05]} 39. Re7+ {[%emt 0:00:02]} Kh6 {[%emt 0:00:01]} 40. f4 {[%emt 0:00:17]} Rb1+ {[%emt 0:00:06]} 41. Kh2 {[%emt 0:00:01]} Rbb2 {[%emt 0:00:01]} 42. Raa7 {[%emt 0:00:15]} Rxg2+ {[%emt 0:00:13]} 43. Kh3 {[%emt 0:00:00]} Rh2+ {[%emt 0:00:13]} 44. Kg3 {[%emt 0:00:02]} Rhg2+ {[%emt 0:01:06]} 45. Kh3 {[%emt 0:00:07]} Rh2+ {[%emt 0:00:15]} 46. Kg3 {[%emt 0:00:01]} Rbg2+ {[%emt 0:00:02]} 47. Kf3 {[%emt 0:00:01]} Rf2+ {[%emt 0:00:07]} 48. Kg3 {[%emt 0:00:01]} Rhg2+ {[%emt 0:00:05]} 49. Kh3 {[%emt 0:00:01]} Rh2+ {[%emt 0:01:41]} 1/2-1/2